bitfinex-derivatives/quotes_SOLF0:USTF0_20250911
["timestamp","ask_amount","ask_price","bid_price","bid_amount"]
[1757558827160,3.06547021,223.37,223.26,0.77921206]
[1757558827161,10.69547021,223.36,223.32,7.52]
[1757558827368,10.69547021,223.35,223.32,7.52]
[1757558827569,7.63,223.35,223.32,7.52]
[1757558828069,1.65029802,223.35,223.28,7.52]
[1757558828364,7.63,223.33,223.28,7.52]
[1757558828866,1.65029802,223.37,223.3,9.54320466]
[1757558829060,3.06378803,223.36,223.3,9.54320466]
[1757558829256,3.06378803,223.35,223.3,2.02320466]
[1757558829457,3.06378803,223.34,223.3,2.02320466]
[1757558829667,9.28029802,223.37,223.3,9.54320466]
[1757558829867,3.06294322,223.36,223.3,9.54320466]
[1757558830070,3.06294322,223.35,223.31,7.52]
[1757558830270,3.06294322,223.34,223.31,7.52]
[1757558830562,9.28029802,223.37,223.31,7.52]
[1757558830767,10.69272231,223.36,223.31,7.52]
[1757558830964,3.06272231,223.35,223.3,2.02320466]
[1757558831168,1.65029802,223.39,223.32,7.52]
[1757558831367,1.65029802,223.39,223.3,2.02320466]
[1757558831368,3.062946,223.38,223.34,7.52]
[1757558831562,1.65029802,223.42,223.34,7.52]
[1757558831763,3.06361137,223.41,223.34,7.52]
[1757558831963,3.06361137,223.4,223.34,7.52]
[1757558832159,3.06361137,223.39,223.31,7.52]
[1757558832363,1.65029802,223.42,223.34,7.52]
[1757558832563,3.0637553,223.41,223.34,7.52]
[1757558832762,3.0637553,223.4,223.34,7.52]
[1757558832964,3.0637553,223.39,223.33,9.17029802]
[1757558833163,7.63,223.41,223.33,9.17029802]
[1757558833365,4.71434941,223.4,223.33,7.52]
[1757558833567,3.06405139,223.39,223.33,7.52]
[1757558836164,9.28029802,223.41,223.33,7.52]
[1757558836366,3.06505537,223.4,223.33,7.52]
[1757558836566,3.06505537,223.39,223.33,7.52]
[1757558836762,9.28029802,223.41,223.33,7.52]
[1757558836968,3.06574324,223.4,223.33,7.52]
[1757558837271,3.06574324,223.39,223.33,7.52]
[1757558837469,9.28029802,223.41,223.33,7.52]
[1757558837669,3.06626981,223.4,223.33,7.52]
[1757558837868,3.06626981,223.39,223.33,7.52]
[1757558838168,9.28029802,223.41,223.33,7.52]
[1757558838466,1.65029802,223.39,223.33,7.52]
[1757558838864,60.54,223.44,223.3,2.02320466]
[1757558838865,1.65029802,223.37,223.3,9.54320466]
[1757558839467,3.06629749,223.36,223.3,9.54320466]
[1757558839663,3.06622522,223.35,223.3,2.02320466]
[1757558839869,1.65029802,223.35,223.3,2.02320466]
[1757558840370,7.63,223.34,223.3,2.02320466]
[1757558840869,1.65029802,223.35,223.3,2.02320466]
[1757558841067,7.63,223.33,223.3,2.02320466]
[1757558842571,1.65029802,223.35,223.3,2.02320466]
[1757558842772,7.63,223.33,223.3,2.02320466]
[1757558843869,7.63,223.34,223.3,2.02320466]
[1757558844267,1.65029802,223.35,223.3,2.02320466]
[1757558844572,3.06584826,223.34,223.3,2.02320466]
[1757558844772,3.06580288,223.33,223.3,2.02320466]
[1757558844972,7.63,223.34,223.3,2.02320466]
[1757558845369,10.69639168,223.33,223.3,2.02320466]
[1757558845569,7.63,223.34,223.3,2.02320466]
[1757558845766,10.69637655,223.33,223.3,2.02320466]
[1757558845970,7.63,223.33,223.3,2.02320466]
[1757558846166,9.28029802,223.35,223.31,7.52]
[1757558846373,3.06618496,223.34,223.31,7.52]
[1757558846573,3.06618496,223.33,223.31,7.52]
[1757558849466,3.06618496,223.33,223.3,2.02320466]
[1757558849671,7.42,223.33,223.3,2.02320466]
[1757558850276,7.42,223.33,223.3,9.33320466]
[1757558851276,3.0709361,223.32,223.3,9.33320466]
[1757558851476,9.07029802,223.36,223.3,2.02320466]
[1757558851678,10.49047194,223.35,223.31,7.31]
[1757558851875,3.07047194,223.34,223.31,7.31]
[1757558852073,10.49047194,223.33,223.3,2.02320466]
[1757558852277,7.42,223.38,223.31,7.31]
[1757558852479,4.7217224,223.37,223.31,7.31]
[1757558852678,3.07142438,223.36,223.31,7.31]
[1757558852876,3.07142438,223.35,223.31,7.31]
[1757558853079,3.07142438,223.34,223.31,7.31]
[1757558853280,3.07142438,223.33,223.31,7.31]
[1757558853478,7.42,223.35,223.31,7.31]
[1757558853673,3.07195165,223.34,223.31,7.31]
[1757558853871,3.07195165,223.33,223.3,2.02320466]
[1757558854082,1.65029802,223.37,223.31,7.31]
[1757558854384,3.07195165,223.36,223.3,9.33320466]
[1757558854677,3.07195165,223.35,223.3,2.02320466]
[1757558854880,3.07195165,223.34,223.31,7.31]
[1757558855078,3.07195165,223.33,223.3,2.02320466]
[1757558855276,1.65029802,223.37,223.31,7.31]
[1757558855475,3.07214055,223.36,223.3,9.33320466]
[1757558855672,3.07214055,223.35,223.3,2.02320466]
[1757558855875,3.07214055,223.34,223.31,7.31]
[1757558856079,3.07214055,223.33,223.31,7.31]
[1757558856282,7.42,223.37,223.31,7.31]
[1757558856482,3.0727933,223.36,223.3,2.02320466]
[1757558856779,3.0727933,223.35,223.3,2.02320466]
[1757558856982,3.0727933,223.34,223.3,2.02320466]
[1757558857178,7.42,223.37,223.31,7.31]
[1757558857375,3.0730541,223.36,223.3,2.02320466]
[1757558857571,3.0730541,223.35,223.3,2.02320466]
[1757558857781,3.0730541,223.34,223.31,7.31]
[1757558857980,1.65029802,223.38,223.31,7.31]
[1757558858184,3.07377116,223.37,223.31,8.96029802]
[1757558858372,3.07377116,223.36,223.32,7.31]
[1757558858578,3.07377116,223.35,223.31,7.31]
[1757558858778,3.07377116,223.34,223.31,1.65029802]
[1757558859081,1.65029802,223.39,223.32,7.31]
[1757558859283,3.07449565,223.38,223.32,7.31]
[1757558859484,3.07449565,223.37,223.31,7.31]
[1757558859781,3.07449565,223.36,223.3,3.67350268]
[1757558859977,3.07449565,223.35,223.3,3.67350268]
[1757558860177,3.07449565,223.34,223.3,3.67350268]
[1757558860377,3.07449565,223.33,223.3,3.67350268]
[1757558860579,7.42,223.38,223.31,7.31]
[1757558860881,3.07587471,223.37,223.31,7.31]
[1757558861072,3.07587471,223.36,223.3,3.67350268]
[1757558861276,3.07587471,223.35,223.31,7.31]
[1757558861482,3.07587471,223.34,223.3,3.67350268]
[1757558861684,3.07587471,223.33,223.31,7.31]
[1757558861878,7.42,223.38,223.31,7.31]
[1757558862080,3.0773553,223.37,223.31,7.31]
[1757558862272,3.0773553,223.36,223.31,7.31]
[1757558862479,3.0773553,223.35,223.3,3.67350268]
[1757558862674,3.0773553,223.34,223.31,7.31]
[1757558862883,3.0773553,223.33,223.3,3.67350268]
[1757558863085,7.42,223.38,223.31,7.31]
[1757558863283,3.07841278,223.37,223.31,7.31]
[1757558863482,3.07841278,223.36,223.31,7.31]
[1757558863782,3.07841278,223.35,223.31,7.31]
[1757558863981,3.07841278,223.34,223.31,1.65029802]
[1757558864180,3.07841278,223.33,223.32,7.31]
[1757558866283,110.12,223.41,223.32,7.75]
[1757558866284,3.07841278,223.37,223.32,7.75]
[1757558866478,3.07841278,223.36,223.34,1.65029802]
[1757558866678,99.89929767,223.42,223.35,7.31]
[1757558866880,6.45764738,223.41,223.35,7.31]
[1757558867082,99.89929767,223.42,223.34,1.65029802]
[1757558867083,6.45764738,223.4,223.34,1.65029802]
[1757558867282,3.08086734,223.39,223.34,1.65029802]
[1757558867482,3.08086734,223.38,223.34,1.65029802]
[1757558867682,3.08086734,223.37,223.34,1.65029802]
[1757558867881,3.08086734,223.36,223.35,7.31]
[1757558868284,99.89929767,223.42,223.35,7.31]
[1757558868486,6.4569855,223.41,223.35,7.31]
[1757558868687,3.08054925,223.4,223.35,7.31]
[1757558868980,3.08054925,223.39,223.34,1.65029802]
[1757558869284,3.08054925,223.38,223.34,1.65029802]
[1757558869490,3.08054925,223.37,223.35,7.31]
[1757558869685,3.08054925,223.36,223.35,7.31]
[1757558877991,3.08054925,223.36,223.31,2.57928152]
[1757558878196,3.08054925,223.35,223.31,2.57928152]
[1757558878396,7.04,223.38,223.32,7.54]
[1757558878689,3.07888437,223.37,223.32,7.54]
[1757558878892,3.07888437,223.37,223.3,2.02320466]
[1757558878893,94.57477803,223.42,223.35,7.54]
[1757558879194,3.07926568,223.41,223.35,7.54]
[1757558879388,3.07926568,223.4,223.35,7.54]
[1757558879594,3.07926568,223.39,223.35,7.54]
[1757558879789,7.04,223.45,223.35,7.54]
[1757558879994,3.07874156,223.44,223.35,7.54]
[1757558880197,3.07874156,223.43,223.35,7.54]
[1757558880393,3.07874156,223.42,223.35,7.54]
[1757558880594,3.07874156,223.41,223.35,7.54]
[1757558880790,3.07874156,223.4,223.35,7.54]
[1757558881095,3.07874156,223.39,223.34,2.57928152]
[1757558881399,7.04,223.45,223.35,7.54]
[1757558881603,3.07811986,223.44,223.35,7.54]
[1757558881798,3.07811986,223.43,223.35,7.54]
[1757558881998,3.07811986,223.42,223.35,7.54]
[1757558882196,7.04,223.45,223.35,7.54]
[1757558882197,3.07811986,223.41,223.35,7.54]
[1757558882496,3.07811986,223.4,223.35,7.54]
[1757558882695,3.07811986,223.39,223.35,7.54]
[1757558882896,7.04,223.46,223.35,7.54]
[1757558883096,3.07797794,223.45,223.37,7.54]
[1757558883302,3.07797794,223.44,223.37,7.54]
[1757558883602,3.07797794,223.43,223.37,7.54]
[1757558883798,3.07797794,223.42,223.37,7.54]
[1757558884000,7.04,223.46,223.37,7.54]
[1757558884001,3.07797794,223.41,223.37,7.54]
[1757558884200,7.04,223.46,223.37,7.54]
[1757558884403,3.07629797,223.45,223.37,7.54]
[1757558884602,3.07629797,223.44,223.37,7.54]
[1757558884804,3.07629797,223.43,223.37,7.54]
[1757558884996,7.04,223.46,223.37,7.54]
[1757558884997,3.07629797,223.42,223.37,7.54]
[1757558885201,3.07629797,223.41,223.37,7.54]
[1757558885400,7.04,223.46,223.37,7.54]
[1757558885601,3.07561434,223.45,223.37,7.54]
[1757558885801,3.07561434,223.44,223.37,7.54]
[1757558886098,3.07561434,223.43,223.37,7.54]
[1757558886303,3.07561434,223.42,223.36,2.57928152]
[1757558886503,3.07561434,223.41,223.37,7.54]
[1757558886704,7.04,223.44,223.37,7.54]
[1757558887006,3.07504872,223.43,223.37,7.54]
[1757558887206,3.07504872,223.42,223.37,7.54]
[1757558887404,3.07504872,223.41,223.37,7.54]
[1757558887708,7.04,223.39,223.37,7.54]
[1757558888107,16.04818364,223.48,223.37,7.54]
[1757558888309,13.48464409,223.47,223.37,7.54]
[1757558888497,7.04,223.45,223.37,7.54]
[1757558888701,7.04,223.43,223.37,7.54]
[1757558888900,3.07436036,223.42,223.37,7.54]
[1757558889111,7.04,223.4,223.37,7.54]
[1757558889505,3.07409623,223.39,223.37,7.54]
[1757558889710,7.04,223.4,223.37,7.54]
[1757558890009,3.07416124,223.39,223.37,7.54]
[1757558890207,7.04,223.4,223.37,7.54]
[1757558890411,3.0742459,223.39,223.37,7.54]
[1757558890612,7.04,223.4,223.37,7.54]
[1757558890907,3.07411588,223.39,223.37,7.54]
[1757558891111,7.04,223.4,223.37,7.54]
[1757558891316,3.07415464,223.39,223.37,7.54]
[1757558891507,7.04,223.4,223.34,7.54]
[1757558891810,7.04,223.47,223.34,7.54]
[1757558892011,7.04,223.45,223.34,7.54]
[1757558892313,3.07278667,223.44,223.34,7.54]
[1757558892611,3.07278667,223.43,223.34,7.54]
[1757558892813,3.07278667,223.42,223.34,7.54]
[1757558893015,3.07278667,223.41,223.34,7.54]
[1757558893212,3.07278667,223.4,223.34,7.54]
[1757558893413,7.04,223.45,223.34,7.54]
[1757558893613,3.07290477,223.44,223.34,7.54]
[1757558893808,3.07290477,223.43,223.34,7.54]
[1757558894114,3.07290477,223.42,223.34,7.54]
[1757558895816,3.07290477,223.41,223.34,7.54]
[1757558896012,3.07290477,223.4,223.34,7.54]
[1757558896220,3.07290477,223.39,223.34,7.54]
[1757558896424,7.04,223.43,223.34,7.54]
[1757558896624,3.0753842,223.42,223.34,7.54]
[1757558896824,3.0753842,223.41,223.34,7.54]
[1757558897026,3.0753842,223.4,223.34,7.54]
[1757558897221,3.0753842,223.39,223.34,7.54]
[1757558897428,7.04,223.43,223.34,7.54]
[1757558897627,3.0758105,223.42,223.34,7.54]
[1757558897828,3.0758105,223.41,223.34,7.54]
[1757558898027,3.0758105,223.4,223.34,7.54]
[1757558898228,3.0758105,223.39,223.34,7.54]
[1757558898431,7.04,223.45,223.34,7.54]
[1757558898622,7.04,223.43,223.34,7.54]
[1757558898826,3.07622448,223.42,223.34,7.54]
[1757558899125,3.07622448,223.41,223.34,7.54]
[1757558899329,3.07622448,223.4,223.34,7.54]
[1757558899523,3.07622448,223.39,223.33,2.57928152]
[1757558899725,4.94451964,223.47,223.34,7.54]
[1757558899726,7.04,223.46,223.34,7.54]
[1757558899922,7.04,223.44,223.34,7.54]
[1757558900119,7.04,223.42,223.34,7.54]
[1757558900322,3.07690703,223.41,223.34,7.54]
[1757558900528,3.07690703,223.4,223.34,7.54]
[1757558900728,3.07690703,223.39,223.34,7.54]
[1757558900930,7.04,223.42,223.34,7.54]
[1757558901129,3.07737561,223.41,223.34,7.54]
[1757558901324,3.07737561,223.4,223.34,7.54]
[1757558901524,3.07737561,223.39,223.33,2.57928152]
[1757558901726,3.07737561,223.38,223.33,2.57928152]
[1757558901927,7.04,223.42,223.34,7.54]
[1757558902128,3.07767952,223.41,223.34,7.54]
[1757558902327,3.07767952,223.4,223.34,7.54]
[1757558902527,3.07767952,223.39,223.33,2.57928152]
[1757558902726,3.07767952,223.38,223.33,2.57928152]
[1757558902927,7.04,223.42,223.34,7.54]
[1757558903127,3.07794641,223.41,223.34,7.54]
[1757558903326,7.04,223.42,223.34,7.54]
[1757558903327,3.07794641,223.4,223.34,7.54]
[1757558903527,3.07794641,223.39,223.34,7.54]
[1757558903723,3.07794641,223.38,223.34,7.54]
[1757558903924,7.04,223.42,223.34,7.54]
[1757558904127,3.07818186,223.41,223.34,7.54]
[1757558904328,3.07818186,223.4,223.34,7.54]
[1757558904529,3.07818186,223.39,223.34,7.54]
[1757558904729,4.94451964,223.46,223.33,2.57928152]
[1757558904730,3.07818186,223.38,223.33,2.57928152]
[1757558904931,4.94451964,223.46,223.33,10.11928152]
[1757558905131,6.45473228,223.45,223.33,10.11928152]
[1757558905325,6.45473228,223.44,223.33,10.11928152]
[1757558905527,7.04,223.42,223.33,10.11928152]
[1757558905834,3.07847933,223.41,223.33,10.11928152]
[1757558906130,10.11847933,223.4,223.33,10.11928152]
[1757558906333,3.07847933,223.39,223.33,10.11928152]
[1757558906527,3.07847933,223.38,223.34,7.54]
[1757558906733,3.07847933,223.37,223.33,2.57928152]
[1757558907033,7.04,223.44,223.34,7.54]
[1757558907235,6.98,223.42,223.34,7.54]
[1757558907534,6.98,223.4,223.34,7.54]
[1757558907723,3.08065383,223.39,223.33,2.57928152]
[1757558907922,3.08065383,223.38,223.34,7.26]
[1757558908131,3.08065383,223.37,223.33,2.57928152]
[1757558908326,6.98,223.44,223.37,7.26]
[1757558908529,6.46133341,223.43,223.37,7.26]
[1757558908728,10.06160519,223.42,223.36,9.83928152]
[1757558908928,10.06160519,223.41,223.37,7.26]
[1757558909129,3.08160519,223.4,223.36,2.57928152]
[1757558909430,3.08160519,223.39,223.36,2.57928152]
[1757558909626,3.08160519,223.38,223.37,7.26]
[1757558909932,3.08160519,223.4,223.36,2.57928152]
[1757558910130,3.08160519,223.39,223.37,7.26]
[1757558910330,3.08160519,223.38,223.37,7.26]
[1757558910630,3.08160519,223.4,223.37,7.26]
[1757558910830,3.08160519,223.39,223.37,7.26]
[1757558911033,3.08160519,223.38,223.37,7.26]
[1757558911232,3.08160519,223.4,223.36,2.57928152]
[1757558911429,3.08160519,223.39,223.37,7.26]
[1757558911628,3.08160519,223.38,223.37,7.26]
[1757558911826,10.06160519,223.4,223.37,7.26]
[1757558912031,3.08160519,223.39,223.37,7.26]
[1757558912333,3.08160519,223.38,223.37,7.26]
[1757558912629,3.08160519,223.38,223.31,7.26]
[1757558912826,6.98,223.36,223.33,7.26]
[1757558913537,3.08346922,223.35,223.33,7.26]
[1757558913837,3.08346922,223.34,223.33,7.26]
[1757558914228,4.94451964,223.43,223.33,7.26]
[1757558914431,13.44512705,223.42,223.33,7.26]
[1757558914627,6.98,223.4,223.33,7.26]
[1757558914825,3.08350392,223.39,223.33,7.26]
[1757558915033,6.98,223.37,223.33,7.26]
[1757558915226,10.06350392,223.36,223.33,7.26]
[1757558915426,3.08350392,223.35,223.33,7.26]
[1757558915735,3.08350392,223.34,223.33,7.26]
[1757558916034,3.08350392,223.35,223.33,7.26]
[1757558916228,3.08350392,223.34,223.33,7.26]
[1757558916429,3.08350392,223.35,223.33,7.26]
[1757558916632,3.08350392,223.34,223.33,7.26]
[1757558917032,3.08350392,223.35,223.33,7.26]
[1757558917233,3.08350392,223.34,223.33,7.26]
[1757558917432,6.98,223.36,223.32,2.57928152]
[1757558917640,3.08366451,223.35,223.32,2.57928152]
[1757558917934,6.98,223.36,223.33,7.26]
[1757558918130,3.08343043,223.35,223.33,7.26]
[1757558918335,6.98,223.36,223.33,7.26]
[1757558918537,3.08338093,223.35,223.33,7.26]
[1757558918734,6.98,223.36,223.33,7.26]
[1757558918931,4.94451964,223.43,223.33,7.26]
[1757558918932,3.08338093,223.35,223.33,7.26]
[1757558919139,6.98,223.41,223.33,7.26]
[1757558919341,3.08391567,223.4,223.37,7.26]
[1757558919538,3.08391567,223.39,223.37,7.26]
[1757558919738,3.08391567,223.38,223.37,7.26]
[1757558920340,10.06391567,223.38,223.35,7.26]
[1757558920540,3.08391567,223.37,223.35,7.26]
[1757558920841,3.08391567,223.36,223.35,7.26]
[1757558924637,11.92451964,223.44,223.35,7.26]
[1757558924837,6.53809689,223.43,223.35,7.26]
[1757558925042,11.92451964,223.44,223.35,7.26]
[1757558925245,3.43109785,223.43,223.35,7.26]
[1757558925445,6.98,223.44,223.35,7.26]
[1757558925742,3.43114829,223.43,223.37,2.57928152]
[1757558925936,6.98,223.44,223.38,7.26]
[1757558926140,6.98,223.44,223.3,2.02320466]
[1757558926141,6.98,223.47,223.41,7.26]
[1757558927643,6.98,223.5,223.41,7.26]
[1757558927844,3.40870018,223.49,223.41,7.26]
[1757558928040,6.98,223.5,223.41,7.26]
[1757558930444,6.98,223.49,223.45,1.64913375]
[1757558930640,6.98,223.51,223.45,1.64913375]
[1757558930845,6.98,223.49,223.45,1.64913375]
[1757558931047,6.98,223.51,223.45,1.64913375]
[1757558931248,6.98,223.49,223.45,1.64913375]
[1757558931448,6.98,223.51,223.45,1.64913375]
[1757558931650,6.98,223.49,223.45,1.64913375]
[1757558931850,6.98,223.51,223.45,1.64913375]
[1757558932051,3.40556258,223.5,223.45,1.64913375]
[1757558932252,6.98,223.51,223.45,1.64913375]
[1757558932450,3.40529842,223.5,223.45,1.64913375]
[1757558932656,6.98,223.51,223.45,1.64913375]
[1757558932857,6.98,223.49,223.45,1.64913375]
[1757558933155,6.98,223.51,223.45,1.64913375]
[1757558933351,0.0303519,223.49,223.45,1.67985684]
[1757558933554,6.98,223.48,223.45,1.67985684]
[1757558934060,0.0303519,223.49,223.45,1.67985684]
[1757558934254,6.98,223.48,223.45,1.67985684]
[1757558935059,0.0303519,223.49,223.45,1.67985684]
[1757558935258,6.98,223.48,223.45,1.67985684]
[1757558935559,0.0303519,223.49,223.45,1.67985684]
[1757558936163,6.98,223.48,223.45,0.03072309]
[1757558936755,6.98,223.46,223.45,0.03072309]
[1757558936954,10.02033426,223.46,223.45,0.03072309]
[1757558943762,10.02033426,223.46,223.4,1.64913375]
[1757558943970,7.47,223.44,223.38,1.64913375]
[1757558944170,7.47,223.42,223.37,1.64913375]
[1757558944373,7.47,223.45,223.37,1.64913375]
[1757558944670,1.64913375,223.46,223.37,1.64913375]
[1757558944671,7.47,223.43,223.37,1.64913375]
[1757558944871,7.47,223.41,223.37,8.83913375]
[1757558945070,0.03395171,223.42,223.37,8.83913375]
[1757558945270,0.03395171,223.42,223.37,1.64913375]
[1757558945471,7.47,223.4,223.37,1.64913375]
[1757558945668,0.03395171,223.42,223.37,1.64913375]
[1757558945869,3.03943758,223.41,223.37,1.64913375]
[1757558946074,7.47,223.41,223.37,1.64913375]
[1757558946366,0.03395171,223.42,223.37,1.64913375]
[1757558946367,0.03395171,223.42,223.37,8.83913375]
[1757558946562,7.47,223.4,223.37,8.83913375]
[1757558947166,0.03395171,223.42,223.38,7.19]
[1757558947366,0.03395171,223.42,223.41,8.83913375]
[1757558948575,7.47,223.51,223.41,8.83913375]
[1757558948770,85.48181399,223.52,223.46,1.64913375]
[1757558948771,7.47,223.49,223.46,1.64913375]
[1757558948975,3.04015125,223.48,223.46,1.64913375]
[1757558949168,3.04015125,223.47,223.46,1.64913375]
[1757558949671,3.04015125,223.47,223.45,1.64913375]
[1757558949871,3.04015125,223.46,223.45,1.64913375]
[1757558950273,3.04015125,223.46,223.45,8.83913375]
[1757558950671,92.95181399,223.52,223.45,8.83913375]
[1757558950870,7.47,223.5,223.47,1.64913375]
[1757558951064,10.51029311,223.49,223.47,1.64913375]
[1757558951270,3.04029311,223.48,223.47,1.64913375]
[1757558954273,3.04029311,223.48,223.47,8.83913375]
[1757558954773,92.95181399,223.52,223.48,7.19]
[1757558954978,10.50022249,223.51,223.48,7.19]
[1757558955173,3.03022249,223.5,223.48,7.19]
[1757558955574,3.03022249,223.5,223.49,1.64913375]
[1757558955774,3.03022249,223.5,223.49,8.83913375]
[1757558956082,7.47,223.55,223.49,1.64913375]
[1757558956279,7.47,223.54,223.53,1.64913375]
[1757558956470,7.47,223.53,223.51,1.64913375]
[1757558958072,1.64913375,223.58,223.39,7.19]
[1757558958277,10.4981765,223.57,223.49,1.64913375]
[1757558958477,7.47,223.55,223.49,1.64913375]
[1757558958677,1.64913375,223.57,223.49,1.64913375]
[1757558958678,3.0281765,223.54,223.49,1.64913375]
[1757558958874,3.0281765,223.53,223.49,1.64913375]
[1757558959077,7.47,223.51,223.49,1.64913375]
[1757558960079,7.47,223.59,223.49,1.64913375]
[1757558960286,7.47,223.57,223.49,1.64913375]
[1757558960478,7.47,223.55,223.49,1.64913375]
[1757558960679,7.47,223.53,223.49,1.64913375]
[1757558960983,10.49789198,223.52,223.49,1.64913375]
[1757558961185,7.47,223.52,223.49,1.64913375]
[1757558961384,7.47,223.57,223.49,1.64913375]
[1757558961584,7.47,223.55,223.49,1.64913375]
[1757558961780,7.47,223.53,223.49,1.64913375]
[1757558961986,7.47,223.57,223.49,1.64913375]
[1757558962186,7.47,223.55,223.49,1.64913375]
[1757558962382,7.47,223.53,223.49,8.83913375]
[1757558962885,7.47,223.57,223.51,1.64913375]
[1757558963085,3.02710478,223.56,223.51,8.83913375]
[1757558963387,7.47,223.54,223.51,8.83913375]
[1757558963582,3.02710478,223.53,223.51,8.83913375]
[1757558963783,3.02710478,223.53,223.52,7.19]
[1757558963979,7.47,223.58,223.52,7.19]
[1757558964183,7.47,223.56,223.55,1.64913375]
[1757558964383,10.49801697,223.56,223.5,7.19]
[1757558964586,3.02801697,223.55,223.54,1.64913375]
[1757558964891,3.02801697,223.55,223.54,8.83913375]
[1757558965086,3.02801697,223.55,223.54,7.19]
[1757558965286,3.02801697,223.55,223.54,8.83913375]
[1757558966694,7.47,223.63,223.54,8.83913375]
[1757558966893,10.49781143,223.62,223.58,8.83913375]
[1757558967093,7.16,223.6,223.58,1.64913375]
[1757558967387,3.02781143,223.59,223.58,1.64913375]
[1757558969894,7.16,223.6,223.58,1.64913375]
[1757558970897,7.16,223.64,223.58,1.64913375]
[1757558971096,7.16,223.62,223.59,7.04]
[1757558971295,3.02624044,223.61,223.59,7.04]
[1757558971496,7.16,223.62,223.59,7.04]
[1757558972100,7.16,223.62,223.6,1.64913375]
[1757558972300,7.16,223.64,223.6,8.68913375]
[1757558972498,7.16,223.69,223.62,1.64913375]
[1757558972796,7.16,223.67,223.62,1.64913375]
[1757558972995,7.16,223.65,223.62,1.64913375]
[1757558973197,7.16,223.65,223.59,7.04]
[1757558973402,7.16,223.65,223.62,1.64913375]
[1757558973698,7.16,223.69,223.6,1.64913375]
[1757558973902,7.16,223.67,223.6,1.64913375]
[1757558974099,7.16,223.65,223.6,1.64913375]
[1757558974304,7.16,223.68,223.6,1.64913375]
[1757558974602,7.16,223.66,223.6,1.64913375]
[1757558975504,7.16,223.66,223.59,7.04]
[1757558975705,7.16,223.68,223.61,1.64913375]
[1757558976007,3.02159031,223.67,223.61,1.64913375]
[1757558976194,7.16,223.68,223.61,1.64913375]
[1757558976398,7.16,223.66,223.61,1.64913375]
[1757558976599,7.16,223.68,223.61,1.64913375]
[1757558976798,3.02054827,223.67,223.61,1.64913375]
[1757558977001,3.02054827,223.66,223.61,1.64913375]
[1757558977203,7.16,223.67,223.61,1.64913375]
[1757558977402,3.02029466,223.66,223.61,1.64913375]
[1757558977595,7.16,223.67,223.61,1.64913375]
[1757558984100,7.16,223.67,223.63,1.64913375]
[1757558984301,9.12152169,223.71,223.65,1.64913375]
[1757558984496,9.12152169,223.71,223.67,8.68913375]
[1757558984707,9.12152169,223.71,223.69,1.64913375]
[1757558985500,1.96152169,223.71,223.67,1.67753773]
[1757558985701,7.16,223.7,223.67,0.02840398]
[1757558985896,1.96152169,223.71,223.67,0.02840398]
[1757558986107,10.17226797,223.7,223.67,0.02840398]
[1757558986439,7.16,223.7,223.67,0.02840398]
[1757558987709,3.61065544,223.71,223.67,0.02840398]
[1757558987710,7.16,223.68,223.67,0.02840398]
[1757558994715,10.17679288,223.68,223.67,0.02840398]
[1757559002920,13.18909378,223.68,223.56,6.98]
[1757559003121,7.22,223.66,223.56,6.98]
[1757559003322,7.22,223.64,223.56,6.98]
[1757559003521,7.22,223.62,223.56,6.98]
[1757559003725,3.01679288,223.61,223.56,6.98]
[1757559004020,10.23679288,223.6,223.52,6.98]
[1757559004225,3.01679288,223.59,223.52,6.98]
[1757559006017,3.02420606,223.58,223.52,6.98]
[1757559006220,7.22,223.6,223.52,6.98]
[1757559006523,3.02538377,223.59,223.52,6.98]
[1757559010931,7.22,223.58,223.52,6.98]